fUST/lending_fUST_20250218
["ID","MTS","AMOUNT","RATE_DAILY","PERIOD"]
[353396240,1739814638096,-800.0,0.00011489,2]
[353396243,1739814638106,-3376.23256776,0.00012529,2]
[353396245,1739814638119,-923.19180834,0.00012529,2]
[353396247,1739814638128,-1885.54917037,0.00012635,2]
[353396250,1739814638151,-5553.14836241,0.00012635,2]
[353396252,1739814638162,-300.0,0.00012649,2]
[353396254,1739814638171,-800.0,0.00012859,2]
[353396256,1739814638180,-150.0,0.00013271,2]
[353396258,1739814638190,-538.0,0.00013271,2]
[353396260,1739814638200,-1971.0,0.00013271,2]
[353396262,1739814638209,-756.078,0.00013271,2]
[353396264,1739814638219,-150.0,0.00013271,2]
[353396266,1739814638228,-396.0,0.00013271,2]
[353396268,1739814638238,-150.0,0.00013271,2]
[353396270,1739814638247,-421.763,0.00013551,2]
[353396273,1739814638260,-500.0,0.00013698,2]
[353396274,1739814638270,-314.56575968,0.00013698,2]
[353396277,1739814638280,-500.0,0.00013698,2]
[353396279,1739814638290,-332.31195325,0.00013698,2]
[353396281,1739814638301,-294.2961341,0.00013698,2]
[353396283,1739814638314,-205.7038659,0.00013698,2]
[353396285,1739814638323,-500.0,0.00013698,2]
[353396287,1739814638333,-500.0,0.00013698,2]
[353396289,1739814638343,-500.0,0.00013698,2]
[353396291,1739814638353,-500.0,0.00013698,2]
[353396293,1739814638364,-500.0,0.00013698,2]
[353396295,1739814638373,-500.0,0.00013698,2]
[353396297,1739814638385,-500.0,0.00013698,2]
[353396299,1739814638395,-500.0,0.00013698,2]
[353396301,1739814638404,-500.0,0.00013698,2]
[353396303,1739814638414,-500.0,0.00013698,2]
[353396305,1739814638423,-500.0,0.00013698,2]
[353396307,1739814638432,-500.0,0.00013698,2]
[353396309,1739814638442,-500.0,0.00013698,2]
[353396311,1739814638451,-500.0,0.00013698,2]
[353396313,1739814638461,-500.0,0.00013698,2]
[353396315,1739814638470,-500.0,0.00013698,2]
[353396317,1739814638480,-500.0,0.00013698,2]
[353396319,1739814638489,-501.45276273,0.00013698,2]
[353396320,1739814638498,-500.0,0.00013698,2]
[353396321,1739814638507,-500.0,0.00013698,2]
[353396322,1739814638520,-500.0,0.00013698,2]
[353396323,1739814638529,-500.0,0.00013698,2]
[353396324,1739814638539,-500.0,0.00013698,2]
[353396326,1739814638548,-471.46162796,0.00013698,2]
[353396328,1739814638558,-500.0,0.00013698,2]
[353396330,1739814638568,-500.0,0.00013698,2]
[353396332,1739814638578,-500.0,0.00013698,2]
[353396334,1739814638587,-500.0,0.00013698,2]
[353396336,1739814638596,-500.0,0.00013698,2]
[353396338,1739814638606,-500.0,0.00013698,2]
[353396340,1739814638615,-500.0,0.00013698,2]
[353396342,1739814638625,-500.0,0.00013698,2]
[353396358,1739814638772,-500.0,0.00013698,2]
[353396361,1739814638782,-500.0,0.00013698,2]
[353396363,1739814638792,-500.0,0.00013698,2]
[353396365,1739814638801,-500.0,0.00013698,2]
[353396367,1739814638811,-500.0,0.00013698,2]
[353396369,1739814638820,-500.0,0.00013698,2]
[353396371,1739814638830,-500.0,0.00013698,2]
[353396373,1739814638839,-573.74,0.00013698,2]
[353396375,1739814638848,-500.0,0.00013698,2]
[353396377,1739814638858,-500.0,0.00013698,2]
[353396379,1739814638867,-500.0,0.00013698,2]
[353396381,1739814638878,-500.0,0.00013698,2]
[353396383,1739814638891,-500.0,0.00013698,2]
[353396385,1739814638900,-500.0,0.00013698,2]
[353396387,1739814638910,-500.0,0.00013698,2]
[353396389,1739814638919,-500.0,0.00013698,2]
[353396391,1739814638928,-500.0,0.00013698,2]
[353396393,1739814638938,-318.29545721,0.00013698,2]
[353396395,1739814638947,-500.0,0.00013698,2]
[353396397,1739814638957,-500.0,0.00013698,2]
[353396399,1739814638966,-503.07666868,0.00013698,2]
[353396401,1739814638976,-500.0,0.00013698,2]
[353396403,1739814638986,-500.0,0.00013698,2]
[353396405,1739814638995,-500.0,0.00013698,2]
[353396407,1739814639004,-500.0,0.00013698,2]
[353396409,1739814639013,-500.0,0.00013698,2]
[353396411,1739814639022,-500.0,0.00013698,2]
[353396413,1739814639031,-500.0,0.00013698,2]
[353396415,1739814639041,-500.0,0.00013698,2]
[353396418,1739814639050,-500.0,0.00013698,2]
[353396420,1739814639060,-500.0,0.00013698,2]
[353396422,1739814639069,-500.0,0.00013698,2]
[353396424,1739814639079,-1035.91,0.00013698,2]
[353396426,1739814639088,-500.0,0.00013698,2]
[353396428,1739814639097,-500.0,0.00013698,2]
[353396430,1739814639107,-500.0,0.00013698,2]
[353396432,1739814639116,-500.0,0.00013698,2]
[353396434,1739814639125,-500.0,0.00013698,2]
[353396436,1739814639136,-646.25,0.00013698,2]
[353396438,1739814639145,-500.0,0.00013698,2]
[353396440,1739814639154,-500.0,0.00013698,2]
[353396442,1739814639163,-500.0,0.00013698,2]
[353396444,1739814639172,-500.0,0.00013698,2]
[353396446,1739814639181,-500.0,0.00013698,2]
[353396448,1739814639191,-509.81209698,0.00013698,2]
[353396450,1739814639200,-500.0,0.00013698,2]
[353396452,1739814639209,-500.0,0.00013698,2]
[353396454,1739814639219,-626.29,0.00013698,2]
[353396456,1739814639228,-500.0,0.00013698,2]
[353396458,1739814639237,-500.0,0.00013698,2]
[353396460,1739814639248,-500.0,0.00013698,2]
[353396462,1739814639260,-500.0,0.00013698,2]
[353396464,1739814639269,-500.0,0.00013698,2]
[353396466,1739814639278,-500.0,0.00013698,2]
[353396468,1739814639288,-500.0,0.00013698,2]
[353396470,1739814639298,-500.0,0.00013698,2]
[353396472,1739814639307,-500.0,0.00013698,2]
[353396474,1739814639317,-500.0,0.00013698,2]
[353396476,1739814639327,-500.0,0.00013698,2]
[353396478,1739814639337,-500.0,0.00013698,2]
[353396480,1739814639346,-599.68732734,0.00013698,2]
[353396482,1739814639355,-500.0,0.00013698,2]
[353396484,1739814639364,-500.0,0.00013698,2]
[353396486,1739814639373,-322.15437,0.00013699,2]
[353396488,1739814639382,-444.112719,0.00013699,2]
[353396490,1739814639392,-152.0,0.00013729,2]
[353396492,1739814639401,-500.0,0.00013779,2]
[353396494,1739814639411,-500.0,0.00013779,2]
[353396496,1739814639419,-481.49025365,0.00013779,2]
[353396498,1739814639429,-170.283,0.00013779,2]
[353396500,1739814639438,-500.0,0.00013779,2]
[353396502,1739814639447,-176.65458819,0.00013779,2]
[353396504,1739814639457,-500.0,0.00013779,2]
[353396506,1739814639466,-500.0,0.00013779,2]
[353396508,1739814639475,-500.0,0.00013779,2]
[353396510,1739814639485,-500.0,0.00013779,2]
[353396512,1739814639494,-500.0,0.00013779,2]
[353396513,1739814639504,-500.0,0.00013779,2]
[353396515,1739814639515,-500.0,0.00013779,2]
[353396518,1739814639524,-500.0,0.00013779,2]
[353396519,1739814639535,-500.0,0.00013779,2]
[353396522,1739814639546,-500.0,0.00013779,2]
[353396524,1739814639557,-500.0,0.00013779,2]
[353396526,1739814639567,-500.0,0.00013779,2]
[353396528,1739814639576,-500.0,0.00013779,2]
[353396530,1739814639589,-500.0,0.00013779,2]
[353396532,1739814639599,-500.0,0.00013779,2]
[353396534,1739814639608,-638.81206418,0.00013779,2]
[353396536,1739814639618,-500.0,0.00013779,2]
[353396538,1739814639627,-500.0,0.00013779,2]
[353396540,1739814639637,-500.0,0.00013779,2]
[353396542,1739814639647,-500.0,0.00013779,2]
[353396544,1739814639656,-500.0,0.00013779,2]
[353396546,1739814639665,-500.0,0.00013779,2]
[353396548,1739814639675,-500.0,0.00013779,2]
[353396550,1739814639685,-500.0,0.00013779,2]
[353396552,1739814639694,-500.0,0.00013779,2]
[353396554,1739814639703,-500.0,0.00013779,2]
[353396556,1739814639712,-500.0,0.00013779,2]
[353396558,1739814639722,-500.0,0.00013779,2]
[353396560,1739814639731,-500.0,0.00013779,2]
[353396562,1739814639740,-500.0,0.00013779,2]
[353396564,1739814639749,-500.0,0.00013779,2]
[353396566,1739814639758,-500.0,0.00013779,2]
[353396568,1739814639770,-500.0,0.00013779,2]
[353396570,1739814639779,-500.0,0.00013779,2]
[353396573,1739814639789,-500.0,0.00013779,2]
[353396575,1739814639799,-500.0,0.00013779,2]
[353396577,1739814639808,-500.0,0.00013779,2]
[353396579,1739814639818,-500.0,0.00013779,2]
[353396581,1739814639829,-500.0,0.00013779,2]
[353396583,1739814639838,-500.0,0.00013779,2]
[353396585,1739814639848,-500.0,0.00013779,2]
[353396587,1739814639857,-500.0,0.00013779,2]
[353396589,1739814639866,-500.0,0.00013779,2]
[353396591,1739814639875,-500.0,0.00013779,2]
[353396593,1739814639885,-500.0,0.00013779,2]
[353396595,1739814639894,-500.0,0.00013779,2]
[353396597,1739814639904,-500.0,0.00013779,2]
[353396599,1739814639913,-189.97947308,0.00013779,2]
[353396601,1739814639927,-310.02052692,0.00013779,2]
[353396603,1739814639937,-500.0,0.00013779,2]
[353396605,1739814639946,-500.0,0.00013779,2]
[353396607,1739814639956,-500.0,0.00013779,2]
[353396609,1739814639965,-500.0,0.00013779,2]
[353396611,1739814639975,-500.0,0.00013779,2]
[353396613,1739814639984,-500.0,0.00013779,2]
[353396615,1739814639994,-500.0,0.00013779,2]
[353396617,1739814640003,-421.65,0.0001378,2]
[353396619,1739814640013,-500.0,0.0001378,2]
[353396621,1739814640022,-456.25,0.0001378,2]
[353396623,1739814640031,-296.7,0.0001378,2]
[353396625,1739814640041,-500.0,0.0001378,2]
[353396627,1739814640050,-500.0,0.0001378,2]
[353396629,1739814640060,-500.0,0.0001378,2]
[353396631,1739814640070,-214.74,0.0001378,2]
[353396633,1739814640079,-435.98,0.0001378,2]
[353396635,1739814640088,-500.0,0.0001378,2]
[353396637,1739814640098,-500.0,0.0001378,2]
[353396639,1739814640107,-500.0,0.0001378,2]
[353396641,1739814640117,-500.0,0.0001378,2]
[353396643,1739814640126,-500.0,0.0001378,2]
[353396646,1739814640136,-500.0,0.0001378,2]
[353396648,1739814640145,-500.0,0.0001378,2]
[353396650,1739814640154,-500.0,0.0001378,2]
[353396651,1739814640164,-1035.91,0.0001378,2]
[353396653,1739814640173,-500.0,0.0001378,2]
[353396656,1739814640182,-500.0,0.0001378,2]
[353396658,1739814640192,-167.41,0.0001378,2]
[353396660,1739814640202,-500.0,0.0001378,2]
[353396662,1739814640211,-500.0,0.0001378,2]
[353396664,1739814640220,-173.03,0.0001378,2]
[353396666,1739814640230,-500.0,0.0001378,2]
[353396668,1739814640240,-500.0,0.0001378,2]
[353396670,1739814640252,-388.61,0.00013863,2]
[353396672,1739814640261,-500.0,0.00013863,2]
[353396674,1739814640271,-500.0,0.00013863,2]
[353396676,1739814640280,-243.85,0.00013863,2]
[353396678,1739814640291,-500.0,0.00013863,2]
[353396680,1739814640300,-500.0,0.00013863,2]
[353396682,1739814640309,-500.0,0.00013863,2]
[353396684,1739814640318,-441.66,0.00013863,2]
[353396686,1739814640328,-500.0,0.00013863,2]
[353396688,1739814640338,-500.0,0.00013863,2]
[353396690,1739814640347,-248.62234066,0.00013863,2]
[353396692,1739814640356,-598.44,0.00013863,2]
[353396694,1739814640366,-1035.91,0.00013863,2]
[353396696,1739814640375,-500.0,0.00013863,2]
[353396697,1739814640384,-502.06,0.00013863,2]
[353396699,1739814640393,-500.0,0.00013863,2]
[353396701,1739814640402,-500.0,0.00013863,2]
[353396703,1739814640412,-500.0,0.00013863,2]
[353396705,1739814640421,-386.74,0.00013863,2]
[353396707,1739814640430,-420.0,0.00013876,2]
[353396709,1739814640439,-500.0,0.000139,7]
[353396711,1739814640449,-500.0,0.000139,7]
[353396713,1739814640458,-500.0,0.000139,7]
[353396715,1739814640467,-500.0,0.000139,7]
[353396717,1739814640477,-500.0,0.000139,7]
[353396720,1739814640486,-500.0,0.000139,7]
[353396722,1739814640496,-500.0,0.000139,7]
[353396724,1739814640506,-500.0,0.000139,7]
[353396725,1739814640516,-500.0,0.000139,7]
[353396728,1739814640526,-500.0,0.000139,7]
[353396730,1739814640536,-500.0,0.000139,7]
[353396732,1739814640545,-500.0,0.000139,7]
[353396734,1739814640555,-500.0,0.000139,7]
[353396736,1739814640564,-500.0,0.000139,7]
[353396738,1739814640574,-500.0,0.000139,7]
[353396740,1739814640583,-500.0,0.000139,7]
[353396742,1739814640592,-500.0,0.000139,7]
[353396744,1739814640602,-500.0,0.000139,7]
[353396746,1739814640611,-500.0,0.000139,7]
[353396748,1739814640620,-500.0,0.000139,7]
[353396750,1739814640629,-500.0,0.000139,7]
[353396752,1739814640639,-500.0,0.000139,7]
[353396754,1739814640649,-500.0,0.000139,7]
[353396756,1739814640658,-500.0,0.000139,7]
[353396758,1739814640667,-500.0,0.000139,7]
[353396760,1739814640677,-500.0,0.000139,7]
[353396762,1739814640686,-500.0,0.000139,7]
[353396764,1739814640696,-500.0,0.000139,7]
[353396766,1739814640705,-500.0,0.000139,7]
[353396768,1739814640714,-500.0,0.000139,7]
[353396770,1739814640723,-500.0,0.000139,7]
[353396772,1739814640733,-500.0,0.000139,7]
[353396774,1739814640742,-500.0,0.000139,7]
[353396776,1739814640752,-500.0,0.000139,7]
[353396778,1739814640762,-237.34,0.000139,7]
[353396780,1739814640772,-150.0,0.00013928,2]
[353396782,1739814640781,-150.0,0.00013928,2]
[353396784,1739814640790,-342.94,0.00013945,2]
[353396786,1739814640800,-500.0,0.00013945,2]
[353396788,1739814640810,-500.0,0.00013945,2]
[353396790,1739814640819,-500.0,0.00013945,2]
[353396792,1739814640829,-500.0,0.00013945,2]
[353396795,1739814640839,-500.0,0.00013945,2]
[353396797,1739814640849,-549.01,0.00013945,2]
[353396799,1739814640859,-1035.91,0.00013945,2]
[353396801,1739814640868,-500.0,0.00013945,2]
[353396803,1739814640878,-400.12,0.00013945,2]
[353396805,1739814640887,-500.0,0.00013945,2]
[353396806,1739814640897,-500.0,0.00013945,2]
[353396809,1739814640907,-982.05507013,0.00013996,2]
[353396811,1739814640916,-982.05507013,0.00013998,2]
[353396813,1739814640926,-982.05507013,0.00013999,2]
[353396815,1739814640935,-647.89658347,0.00014026,2]
[353396817,1739814640946,-500.0,0.00014027,2]
[353396819,1739814640956,-500.0,0.00014027,2]
[353396821,1739814640966,-500.0,0.00014027,2]
[353396823,1739814640976,-500.0,0.00014027,2]
[353396825,1739814640986,-500.0,0.00014027,2]
[353396827,1739814640995,-1035.91,0.00014027,2]
[353396829,1739814641005,-248.48,0.00014027,2]
[353396831,1739814641015,-500.0,0.00014027,2]
[353396833,1739814641024,-500.0,0.00014027,2]
[353396835,1739814641034,-500.0,0.00014109,2]
[353396837,1739814641043,-500.0,0.00014109,2]
[353396839,1739814641053,-500.0,0.00014109,2]
[353396841,1739814641063,-500.0,0.00014109,2]
[353396853,1739814641169,-500.0,0.00014109,2]
[353396855,1739814641179,-1035.91,0.00014109,2]
[353396857,1739814641189,-500.0,0.00014109,2]
[353396859,1739814641198,-500.0,0.00014109,2]
[353396861,1739814641208,-150.0,0.00014139,4]
[353396864,1739814641218,-150.0,0.00014139,4]
[353396866,1739814641228,-171.79587479,0.00014172,2]
[353396868,1739814641238,-468.01,0.00014191,2]
[353396870,1739814641247,-500.0,0.00014191,2]
[353396872,1739814641257,-500.0,0.00014191,2]
[353396874,1739814641270,-500.0,0.00014191,2]
[353396876,1739814641279,-500.0,0.00014191,2]
[353396878,1739814641288,-1035.91,0.00014191,2]
[353396880,1739814641298,-500.0,0.00014191,2]
[353396882,1739814641309,-500.0,0.00014191,2]
[353396884,1739814641319,-160.0,0.0001421,3]
[353396886,1739814641328,-316.20531182,0.0001421,5]
[353396888,1739814641337,-222.9003822,0.00014213,2]
[353396890,1739814641348,-800.0,0.00014229,2]
[353396892,1739814641358,-500.0,0.00014273,2]
[353396894,1739814641368,-500.0,0.00014273,2]
[353396896,1739814641377,-500.0,0.00014273,2]
[353396898,1739814641387,-500.0,0.00014273,2]
[353396900,1739814641396,-1035.91,0.00014273,2]
[353396902,1739814641405,-500.0,0.00014273,2]
[353396904,1739814641415,-447.65,0.00014273,2]
[353396906,1739814641424,-500.0,0.00014356,2]
[353396908,1739814641434,-500.0,0.00014356,2]
[353396910,1739814641444,-380.64,0.00014356,2]
[353396912,1739814641454,-500.0,0.00014356,2]
[353396914,1739814641463,-1035.91,0.00014356,2]
[353396916,1739814641473,-500.0,0.00014356,2]
[353396918,1739814641482,-600.0,0.000144,2]
[353396920,1739814641492,-168.48787744,0.00014411,2]
[353396922,1739814641501,-500.0,0.00014438,2]
[353396924,1739814641510,-407.02,0.00014438,2]
[353396926,1739814641520,-500.0,0.00014438,2]
[353396928,1739814641529,-1035.91,0.00014438,2]
[353396930,1739814641539,-518.45,0.00014438,2]
[353396932,1739814641549,-157.2280238,0.00014452,2]
[353396934,1739814641558,-500.0,0.0001452,2]
[353396936,1739814641568,-500.0,0.0001452,2]
[353396938,1739814641577,-1035.91,0.0001452,2]
[353396940,1739814641586,-600.0,0.0001455,2]
[353396942,1739814641596,-500.0,0.00014582,2]
[353396944,1739814641606,-500.0,0.00014582,2]
[353396946,1739814641615,-1181.9565742,0.00014601,2]
[353396948,1739814641624,-500.0,0.00014602,2]
[353396950,1739814641635,-500.0,0.00014602,2]
[353396952,1739814641645,-1035.91,0.00014602,2]
[353396954,1739814641654,-1000.0,0.00014614,2]
[353396956,1739814641663,-828.75654214,0.00014641,2]
[353396958,1739814641673,-399.87,0.00014664,2]
[353396959,1739814641682,-437.02,0.00014664,2]
[353396962,1739814641692,-1000.0,0.00014677,2]
[353396963,1739814641701,-1000.0,0.00014682,2]
[353396965,1739814641711,-508.98,0.00014684,2]
[353396967,1739814641720,-649.35,0.00014684,2]
[353396969,1739814641730,-1035.91,0.00014684,2]
[353396971,1739814641739,-1000.0,0.00014693,2]
[353396973,1739814641749,-600.0,0.000147,2]
[353396975,1739814641758,-1000.0,0.0001472,2]
[353396977,1739814641768,-1035.91,0.00014767,2]
[353396979,1739814641777,-345.0,0.0001479,2]
[353396981,1739814641787,-151.0,0.000148,2]
[353396983,1739814641796,-151.0,0.000148,2]
[353396986,1739814641806,-38638.37539949,0.000148,2]
[353396987,1739814641816,-1311.44150986,0.000148,2]
[353396989,1739814641825,-1439.31662556,0.000148,2]
[353396992,1739814641835,-1439.31662556,0.000148,2]
[353396993,1739814641844,-1439.31662556,0.000148,2]
[353396995,1739814641854,-1439.31662556,0.000148,2]
[353396997,1739814641863,-1439.31662556,0.000148,2]
[353397000,1739814641873,-1439.31662556,0.000148,2]
[353397001,1739814641882,-1439.31662556,0.000148,2]
[353397003,1739814641893,-1439.31662556,0.000148,2]
[353397005,1739814641902,-1439.31662556,0.000148,2]
[353397007,1739814641911,-1439.31662556,0.000148,2]
[353397009,1739814641920,-1439.31662556,0.000148,2]
[353397011,1739814641931,-1439.31662556,0.000148,2]
[353397013,1739814641940,-1439.31662556,0.000148,2]
[353397015,1739814641949,-1439.31662556,0.000148,2]
[353397017,1739814641959,-1439.31662556,0.000148,2]
[353397019,1739814641968,-1439.31662556,0.000148,2]
[353397021,1739814641978,-1439.31662556,0.000148,2]
[353397023,1739814641988,-1439.31662556,0.000148,2]
[353397025,1739814641998,-1439.31662556,0.000148,2]
[353397027,1739814642008,-1439.31,0.000148,2]
[353397029,1739814642017,-415.87866598,0.000148,2]
[353397031,1739814642027,-415.87866598,0.000148,2]
[353397033,1739814642036,-415.87866598,0.000148,2]
[353397035,1739814642046,-415.87866598,0.000148,2]
[353397037,1739814642055,-415.87866598,0.000148,2]
[353397039,1739814642065,-415.87866598,0.000148,2]
[353397041,1739814642076,-415.87866598,0.000148,2]
[353397043,1739814642085,-415.87866598,0.000148,2]
[353397045,1739814642095,-415.87866598,0.000148,2]
[353397047,1739814642104,-415.87866598,0.000148,2]
[353397049,1739814642113,-415.87866598,0.000148,2]
[353397051,1739814642123,-415.87866598,0.000148,2]
[353397053,1739814642132,-415.87866598,0.000148,2]
[353397055,1739814642142,-415.87866598,0.000148,2]
[353397057,1739814642151,-415.87866598,0.000148,2]
[353397059,1739814642160,-415.87866598,0.000148,2]
[353397061,1739814642170,-415.87866598,0.000148,2]
[353397063,1739814642179,-415.87866598,0.000148,2]
[353397065,1739814642188,-415.87866598,0.000148,2]
[353397067,1739814642197,-415.87,0.000148,2]
[353397069,1739814642207,-222.9003822,0.00014827,2]
[353397071,1739814642217,-1000.0,0.00014842,2]
[353397073,1739814642227,-1035.91,0.00014849,2]
[353397075,1739814642236,-600.0,0.0001485,2]
[353397077,1739814642251,-1000.0,0.00014867,2]
[353397080,1739814642266,-1000.0,0.00014883,2]
[353397082,1739814642280,-374.99246179,0.00014899,2]
[353397085,1739814642293,-1283.44032158,0.00014899,2]
[353397087,1739814642305,-500.0,0.00014899,2]
[353397089,1739814642316,-108545.14054859,0.000149,5]
[353397091,1739814642327,-183.1,0.000149,2]
[353397093,1739814642339,-3000.0,0.000149,2]
[353397095,1739814642351,-300.0,0.000149,5]
[353397098,1739814642362,-156.55,0.000149,2]
[353397100,1739814642375,-151.0,0.000149,2]
[353397102,1739814642389,-151.0,0.000149,2]
[353397104,1739814642401,-151.0,0.000149,2]
[353397107,1739814642415,-151.0,0.000149,2]
[353397109,1739814642428,-151.0,0.000149,2]
[353397111,1739814642440,-151.0,0.000149,2]
[353397113,1739814642453,-151.0,0.000149,2]
[353397116,1739814642465,-151.0,0.000149,2]
[353397118,1739814642477,-77355.10970847,0.000149,2]
[353397130,1739814642592,-500.0,0.00013698,2]
[353397132,1739814642603,-500.0,0.00013698,2]
[353397134,1739814642613,-500.0,0.0001378,2]
[353397137,1739814642624,-283.97329221,0.00013863,2]
[353397503,1739814646401,-500.0,0.00013698,2]
[353397505,1739814646412,-500.0,0.00013698,2]
[353397508,1739814646424,-423.06,0.0001378,2]
[353397510,1739814646438,-216.02670779,0.00013863,2]
[353397512,1739814646449,-500.0,0.00013945,2]
[353397515,1739814646461,-228.16,0.00014027,2]
[353397517,1739814646471,-2411.22621444,0.000149,5]
[353397910,1739815549100,-250.0,0.00010578,2]
[353397911,1739815549124,-206.02388496,0.00010685,2]
[353397912,1739815646105,-193.97611504,0.00010685,2]
[353397913,1739815646127,-700.0,0.00011489,2]
[353397914,1739815646147,-15.26865745,0.00012695,2]
[353397943,1739815832508,-700.0,0.00011489,2]
[353397944,1739815832519,-843.2341398,0.00012493,2]
[353397945,1739815832529,-7438.69753278,0.00012658,2]
[353397947,1739815832538,-700.0,0.00012859,2]
[353397949,1739815832548,-300.0,0.0001327,2]
[353397951,1739815832558,-150.0,0.00013271,2]
[353397953,1739815832568,-809.633,0.00013271,2]
[353397955,1739815832578,-1530.85448951,0.00013548,2]
[353397958,1739815832590,-131.84247799,0.00013548,2]
[353397960,1739815832600,-222.9003822,0.00013598,2]
[353397962,1739815832609,-337.411,0.0001368,2]
[353397963,1739815832620,-508.44,0.00013698,2]
[353397964,1739815832629,-451.44,0.00013698,2]
[353397965,1739815832639,-500.0,0.00013698,2]
[353397966,1739815832654,-500.0,0.00013698,2]
[353397967,1739815832664,-500.0,0.00013698,2]
[353397968,1739815832673,-500.0,0.00013698,2]
[353397969,1739815832683,-500.0,0.00013698,2]
[353397970,1739815832692,-500.0,0.00013698,2]
[353397971,1739815832702,-500.0,0.00013698,2]
[353397972,1739815832712,-500.0,0.00013698,2]
[353397973,1739815832721,-500.0,0.00013698,2]
[353397974,1739815832731,-500.0,0.00013698,2]
[353397975,1739815832741,-342.94,0.00013698,2]
[353397976,1739815832751,-500.0,0.00013698,2]
[353397977,1739815832761,-500.0,0.00013698,2]
[353397978,1739815832771,-500.0,0.00013698,2]
[353397979,1739815832781,-500.0,0.00013698,2]
[353397980,1739815832790,-270.73654876,0.00013698,2]
[353397981,1739815832802,-229.26345124,0.00013698,2]
[353397982,1739815832811,-500.0,0.00013698,2]
[353397983,1739815832820,-386.74,0.00013698,2]
[353397984,1739815832830,-500.0,0.00013698,2]
[353397985,1739815832839,-500.0,0.00013698,2]
[353397986,1739815832849,-500.0,0.00013698,2]
[353397987,1739815832859,-500.0,0.00013698,2]
[353397988,1739815832869,-500.0,0.00013698,2]
[353397989,1739815832885,-500.0,0.00013698,2]
[353397990,1739815832895,-500.0,0.00013698,2]
[353397991,1739815832904,-500.0,0.00013698,2]
[353397992,1739815832914,-501.71580436,0.00013698,2]
[353397993,1739815832924,-500.0,0.00013698,2]
[353397994,1739815832933,-500.0,0.00013698,2]
[353397996,1739815832943,-500.0,0.00013698,2]
[353397997,1739815832953,-500.0,0.00013698,2]
[353397999,1739815832962,-500.0,0.00013698,2]
[353398001,1739815832971,-500.0,0.00013698,2]
[353398003,1739815832980,-505.78158092,0.00013698,2]
[353398005,1739815832989,-500.0,0.00013698,2]
[353398007,1739815832999,-500.0,0.00013698,2]
[353398009,1739815833009,-500.0,0.00013698,2]
[353398011,1739815833019,-500.0,0.00013698,2]
[353398013,1739815833029,-500.0,0.00013698,2]
[353398015,1739815833039,-500.0,0.00013698,2]
[353398017,1739815833049,-500.0,0.00013698,2]
[353398019,1739815833059,-500.0,0.00013698,2]
[353398021,1739815833069,-500.0,0.00013698,2]
[353398023,1739815833078,-500.0,0.00013698,2]
[353398024,1739815833088,-500.0,0.00013698,2]
[353398027,1739815833098,-500.0,0.00013698,2]